Cogmind - Beta 15 @@@ ROGUE MODE // 2025.09.21 @ 12:00:59 Player: Runagate Result: Self-destructed Performance ------------- Evolutions (2) 1000 Regions Visited (3) 600 Robots Destroyed (25) 125 Value Destroyed (535) 535 Prototype IDs (0) 0 Alien Tech Used (0) 0 Bonus (0) 0 TOTAL SCORE: 2260 Bonus ------- None Cogmind --------- Core Integrity 345/550 Matter 200/300 Energy 100/100 System Corruption 0% Temperature Cool (0) Movement Core (350) Ox6 Location -8/Materials Parts ------- > --- POWER (1) -------- (None) > --- PROPULSION (2) --- (None) > --- UTILITY (6) ------ Large Storage Unit Signal Interpreter > --- WEAPON (2) ------- (None) > --- INVENTORY (15) --- Light Ion Engine Improved Ion Engine Huge Storage Unit Compact Matter Pod (0) Mining Laser Peak State ------------ > --- POWER ------------ Improved Ion Engine > --- PROPULSION ------- Wheel Wheel > --- UTILITY ---------- Large Storage Unit Signal Interpreter Seismic Detector > --- WEAPON ----------- Small Laser Heavy Assault Rifle > --- INVENTORY -------- Ion Engine Light Ion Engine Wheel Huge Storage Unit Compact Matter Pod Assault Rifle Mining Laser [Rating: 10] Favorites ----------- Power Ion Engine Engine Ion Engine Propulsion Wheel Treads Light Treads Wheel Wheel Utility Seismic Detector Device Seismic Detector Storage Large Storage Unit Processor Signal Interpreter Weapon Light Cannon Energy Gun Small Laser Ballistic Gun Assault Rifle Ballistic Cannon Light Cannon Special Weapon Mining Laser Build | -11 -10 -9 -8 ------- Run | Yrd Mat Mat Mat Slots Evolved 4 | . . 2 2 Power . | . . . . Propulsion . | . . . . Utility 4 | . . 2 2 Weapon . | . . . . Parts Attached 23 | 10 6 6 1 Power 4 | 2 . 1 1 Engine 4 | 2 . 1 1 Core . | . . . . Reactor . | . . . . Propulsion 6 | 4 . 2 . Treads 1 | 1 . . . Leg . | . . . . Wheel 5 | 3 . 2 . Hover . | . . . . Flight . | . . . . Utility 7 | 2 3 2 . Device 2 | 1 . 1 . Storage 4 | 1 3 . . Processor 1 | . . 1 . Hackware . | . . . . Protection . | . . . . Artifact . | . . . . Weapon 6 | 2 3 1 . Energy Gun 1 | 1 . . . Energy Cannon . | . . . . Ballistic Gun 3 | 1 1 1 . Ballistic Cannon 1 | . 1 . . Launcher . | . . . . Special Weapon 1 | . 1 . . Impact Weapon . | . . . . Slashing Weapon . | . . . . Piercing Weapon . | . . . . Special Melee Weapon . | . . . . Unidentified Prototypes . | . . . . Parts Lost 9 | . . 1 8 Power 1 | . . . 1 Propulsion 3 | . . . 3 Utility 2 | . . 1 1 Weapon 3 | . . . 3 Highest Loss Streak 7 | . . 1 7 To Critical Strikes . | . . . . Average Backups 4 | . 5 5 6 Power 1 | . 1 1 2 Propulsion 1 | . 1 1 . Utility 1 | . 1 1 2 Weapon 1 | . 1 2 1 Tool/Special . | . . . . Unused Backups 2 | . 1 . 1 Power . | . . . . Propulsion 1 | . 1 . . Utility 1 | . . . 1 Weapon . | . . . . Tool/Special . | . . . . Average Slot Usage (%) 92 | . 100 98 58 Engine 11 | . 14 11 6 Wheel 22 | . 28 22 13 Device 15 | . 14 20 7 Storage 11 | . 14 11 9 Processor 6 | . . 10 9 Energy Gun 3 | . 4 2 6 Ballistic Gun 8 | . 8 9 7 Ballistic Cannon 7 | . 10 8 . Special Weapon 2 | . 5 1 . Peak Build Rating 10 | 7 7 10 10 Average Rating 7 | 5 7 8 7 On Entrance 6 | . 7 7 10 Naked Turns . | . . . . Heaviest Build 90 | 13 90 32 32 Greatest Support 26 | 26 20 20 20 Greatest Overweight (x) 6 | . 4 1 6 Average Overweight (x) . | . . 1 1 Largest Inventory Capacity 25 | 8 25 15 15 Average Capacity 12 | 7 11 15 15 Most Carried 9 | 2 9 7 8 Average Carried 4 | . 5 5 6 Final Capacity 15 | 8 15 15 15 Final Carried 8 | 1 8 7 5 Class Distribution -------------------- 80% | Mutant 19% | Scavenger-Mutant Dominant Class ---------------- Mutant | -10/Materials Mutant | -9/Materials Scavenger-Mutant | -8/Materials Resources | -11 -10 -9 -8 ----------- Run | Yrd Mat Mat Mat Matter Collected 740 | 320 149 214 57 Remotely . | . . . . Salvage Created 675 | 218 163 183 111 Parts 46 | 12 15 13 6 Haulers Intercepted . | . . . . Recyclers Shooed . | . . . . Parts Field Recycled . | . . . . Retrieved Matter . | . . . . Parts Self-Destructed . | . . . . Prevented . | . . . . Kills | -11 -10 -9 -8 ------- Run | Yrd Mat Mat Mat Combat Hostiles Destroyed 13 | . 3 8 2 Guns 5 | . 1 2 2 Cannons 8 | . 2 6 . Classes Destroyed 8 | 3 2 2 1 Worker 3 | 2 . 1 . Builder 1 | . 1 . . Tunneler 6 | 4 2 . . Recycler 1 | 1 . . . Watcher 1 | . . . 1 Swarmer 4 | . . 4 . Grunt 7 | . 3 3 1 Sentry 2 | . . 1 1 Best Kill Streak 5 | 4 2 5 1 Combat Bots Only 5 | . 2 5 1 Max Kills in Single Turn 2 | 1 2 1 1 Gunslinging . | . . . . Exploded . | . . . . Melee . | . . . . Uniques/NPCs Destroyed . | . . . . Combat | -11 -10 -9 -8 -------- Run | Yrd Mat Mat Mat Hostile Shots Fired 109 | . 16 52 41 Missed 28 | . 5 13 10 Hits 81 | . 11 39 31 Projectile 81 | . 11 39 31 Critical Strikes 3 | . . . 3 Damage Taken 1155 | . 145 381 629 Core 310 | . 43 62 205 Absorbed by Shields . | . . . . Core Remaining (%) 88 | 100 82 84 . Volleys Fired 102 | 20 21 38 23 Largest 2 | 2 2 2 2 Hottest 130 | 60 130 120 63 Shots Fired 190 | 40 42 74 34 Gun 130 | 40 18 38 34 Cannon 53 | . 20 33 . Launcher . | . . . . Special 7 | . 4 3 . Kinetic 134 | 20 37 58 19 Thermal 56 | 20 5 16 15 Explosive . | . . . . Electromagnetic . | . . . . Robot Hit Streak 6 | 6 6 6 6 Robot Miss Streak 4 | 2 2 4 2 Penetration Max . | . . . . Secondary Targets . | . . . . Shots Hit Robots 108 | 25 21 41 21 Core Hits 36 | 10 8 11 7 Critical Kills . | . . . . Critical Parts Destroyed 1 | 1 . . . Critical Strikes 2 | 1 . 1 . Destroy 1 | 1 . . . Blast 1 | . . 1 . Melee Attacks . | . . . . Impact . | . . . . Slashing . | . . . . Piercing . | . . . . Sneak Attacks . | . . . . Combat Hostiles . | . . . . Follow-up Attacks . | . . . . Damage Inflicted 1563 | 245 316 591 411 Guns 883 | 245 116 266 256 Cannons 501 | . 200 301 . Explosions 151 | . . . 151 Melee . | . . . . Ramming 4 | . . . 4 Kinetic 1043 | 81 305 499 158 Thermal 516 | 164 11 92 249 Explosive . | . . . . Electromagnetic . | . . . . Impact . | . . . . Slashing . | . . . . Piercing . | . . . . Highest Corruption . | . . . . Average Corruption . | . . . . Corruption Purged . | . . . . Corruption Blocked . | . . . . Overload Shots . | . . . . Overflow Damage 117 | . . . 117 Projectiles . | . . . . Explosions 117 | . . . 117 Melee . | . . . . Knockbacks 10 | . 4 6 . Impact . | . . . . Kinetic 10 | . 4 6 . Secondary . | . . . . Self-Inflicted Damage 165 | . . . 165 Shots 2 | . . . 2 Rammed 3 | . . . 3 Targets Rammed 3 | . . . 3 Kicked . | . . . . Crushed . | . . . . Highest Temperature 66 | 60 66 9 22 Average Temperature 18 | 27 16 3 8 Received Heat Transfer 474 | . 84 93 297 Siege Activations . | . . . . Martial Activations . | . . . . Shielding Activations . | . . . . Robots Disrupted . | . . . . Combat Hostiles . | . . . . Robots Corrupted . | . . . . Combat Hostiles . | . . . . Parts Fried . | . . . . Impact Corruptions . | . . . . Robots Melted . | . . . . Combat Hostiles . | . . . . Parts Melted . | . . . . Heat Transferred 975 | 375 25 200 375 Parts Sabotaged . | . . . . Parts Stolen . | . . . . Parts Stripped . | . . . . Power Chain Reactions . | . . . . Alert | -11 -10 -9 -8 ------- Run | Yrd Mat Mat Mat Maximum Alert Level . | . . . . Low Security (%) 100 | 100 100 100 100 Level 1 . | . . . . Level 2 . | . . . . Level 3 . | . . . . Level 4 . | . . . . Level 5 . | . . . . High Security . | . . . . Max Security . | . . . . Peak Influence 131 | 10 40 131 97 Initial 44 | . . 4 44 Average 19 | 1 9 26 43 Influence Increases 578 | 35 123 257 163 Destroy 0b10 Robot/C 260 | . 60 160 40 Destroy 0b10 Robot/NC 60 | 35 15 5 5 Destroy Leader 62 | . 10 30 22 Successful Hack 6 | . 6 . . Disable Machine 90 | . 15 30 45 Destroy Structure 55 | . 2 2 51 Lose Combat Pursuer 45 | . 15 30 . Influence Decreases 521 | 35 111 162 213 Entered New Map 71 | . . 8 63 Time Decay 360 | 35 111 144 70 Lost Part 90 | . . 10 80 Squads Dispatched 2 | . . 1 1 Investigation 1 | . . 1 . Extermination . | . . . . Reinforcement 1 | . . . 1 Assault . | . . . . Garrison . | . . . . Intercept . | . . . . Searches Triggered . | . . . . Construction Impeded . | . . . . Haulers Reinforced . | . . . . Active Scanning Responses . | . . . . Cargo Convoy Interrupts . | . . . . Stealth | -11 -10 -9 -8 --------- Run | Yrd Mat Mat Mat Distress Signals 3 | . 2 . 1 Communications Jammed . | . . . . Distress Signals . | . . . . Times Spotted 26 | . 9 11 6 Peak Tracking Total 5 | . 3 5 3 Tactical Retreats 3 | . 1 2 . Traps | -11 -10 -9 -8 ------- Run | Yrd Mat Mat Mat Traps Triggered 1 | . . 1 . Indirectly . | . . . . Trap Hack Attempts . | . . . . Triggered . | . . . . Disarmed . | . . . . Reprogrammed . | . . . . Reused . | . . . . Traps Extracted . | . . . . Installed . | . . . . Triggered . | . . . . Machines | -11 -10 -9 -8 ---------- Run | Yrd Mat Mat Mat Machines Disabled 6 | . 1 2 3 Max in Single Turn 3 | . 1 1 3 Machines Repaired . | . . . . Machines Dismantled . | . . . . Machines Sabotaged . | . . . . Overloaded Fab Kills . | . . . . Hacking | -11 -10 -9 -8 --------- Run | Yrd Mat Mat Mat Machines Accessed 3 | . 2 1 . Terminals 3 | . 2 1 . Fabricators . | . . . . Repair Stations . | . . . . Recycling Units . | . . . . Scanalyzers . | . . . . Garrison Access . | . . . . Total Hacks 6 | . 5 1 . Successful 2 | . 1 1 . Failed 4 | . 4 . . Catastrophic 1 | . 1 . . Database Lockouts . | . . . . Manual 5 | . 5 . . Terminals 6 | . 5 1 . Fabricators . | . . . . Repair Stations . | . . . . Recycling Units . | . . . . Scanalyzers . | . . . . Garrison Access . | . . . . Terminal Hacks 2 | . 1 1 . Zone Layout 2 | . 1 1 . Fabricator Hacks . | . . . . Repair Station Hacks . | . . . . Recycling Unit Hacks . | . . . . Scanalyzer . | . . . . Garrison Access Hacks . | . . . . Unauthorized Hacks . | . . . . Terminals . | . . . . Fabricators . | . . . . Repair Stations . | . . . . Recycling Units . | . . . . Scanalyzers . | . . . . Garrison Access . | . . . . Data Cores Recovered . | . . . . Used . | . . . . Hacking Detections 3 | . 2 1 . Full Trace Events . | . . . . Feedback Events . | . . . . Feedback Blocked . | . . . . Robot Schematics Acquired . | . . . . Robots Built . | . . . . Authchips . | . . . . Time . | . . . . Total Robot Build Rating . | . . . . Part Schematics Acquired . | . . . . Parts Built . | . . . . Authchips . | . . . . Time . | . . . . Total Part Build Rating . | . . . . Parts Repaired . | . . . . Time . | . . . . Parts Recycled . | . . . . Recycled Matter . | . . . . Retrieved Matter . | . . . . Retrieved Components . | . . . . Parts Scanalyzed . | . . . . Part Schematics Acquired . | . . . . Parts Damaged . | . . . . Bothacking | -11 -10 -9 -8 ------------ Run | Yrd Mat Mat Mat Used RIF Installer . | . . . . Robots Hacked . | . . . . Non-combat . | . . . . Combat . | . . . . Robot Hacks Applied . | . . . . Relay Couplers Released . | . . . . Fabnet Peak Effective % . | . . . . Robots Rewired . | . . . . Allies Hacked . | . . . . Hacks Repelled . | . . . . Allies | -11 -10 -9 -8 -------- Run | Yrd Mat Mat Mat Total Allies . | . . . . Largest Group . | . . . . Highest-Rated Group . | . . . . Highest-Rated Ally . | . . . . Total Orders . | . . . . Ally Attacks . | . . . . Total Damage . | . . . . Kills . | . . . . Allies Corrupted . | . . . . Allies Melted . | . . . . Intel | -11 -10 -9 -8 ------- Run | Yrd Mat Mat Mat Active Infowar (turns) 996 | 4 417 445 130 Sensors 394 | . . 394 . Seismic 996 | 4 417 445 130 Robot Analysis Total . | . . . . Derelict Logs Recovered . | . . . . Drone Launches . | . . . . Drone Recoveries . | . . . . Exploration | -11 -10 -9 -8 ------------- Run | Yrd Mat Mat Mat Turns Passed 1170 | 149 417 445 159 Spaces Moved 836 | 79 359 324 74 Core 10 | 6 . . 4 Treads 3 | 3 . . . Legs . | . . . . Wheels 823 | 70 359 324 70 Hover . | . . . . Flight . | . . . . Fastest Speed 50 | 50 80 95 95 Average Speed 90 | 84 84 95 110 Slowest Speed 350 | 160 140 95 350 Overloaded Moves . | . . . . Propulsion Burnouts . | . . . . Robots Hopped . | . . . . Potential Cave-ins . | . . . . Cave-ins Triggered . | . . . . Exploration Rate (%) 22 | 6 51 23 10 Regions Visited 3 Branch Regions . Pre-discovered Areas . | . . . . Known Exits Taken 1 | . . 1 . Unknown Exits Taken 2 | 1 1 . . Scrap Searched . | . . . . Spaces Dug 2 | . 1 1 . Terrain Destroyed 60 | . 1 1 58 Melee . | . . . . Projectile 2 | . 1 1 . AOE 58 | . . . 58 Terrain Rammed . | . . . . Walls Destroyed . | . . . . Machines Disabled . | . . . . Actions | -11 -10 -9 -8 --------- Run | Yrd Mat Mat Mat Total 1029 | 121 421 378 109 Wait 45 | 10 24 6 5 Move 833 | 78 358 323 74 Hop . | . . . . Pick Up 9 | . 8 1 . Fast Attach 8 | 8 . . . Attach 4 | . . 2 2 Detach 1 | 1 . . . Swap 17 | 2 7 7 1 Drop 7 | 2 3 1 1 Fire 102 | 20 21 38 23 Melee . | . . . . Ram 3 | . . . 3 Kick . | . . . . Crush . | . . . . Escape Stasis . | . . . . Rewire . | . . . . Trap . | . . . . Miscellaneous . | . . . . Route ------- -11/Scrapyard -10/Materials (discovered 4 exits: *Mat / [*Min x2] / [*Sub]) -9/Materials (discovered 3 exits: *Mat / [Min] / [*Sto]) -8/Materials History --------- Turn | Location | Event 20 | -11/Scrapyard | Discovered new exit (range 16) 150 | -11/Scrapyard | Entered Materials 151 | -10/Materials | Met a group of wandering Federalists 219 | -10/Materials | Lost 3 allies 220 | -10/Materials | Discovered new exit (range 6) 220 | -10/Materials | Discovered new exit (range 11) 315 | -10/Materials | Build established: Mutant 399 | -10/Materials | Discovered new exit (range 14) 547 | -10/Materials | Discovered new exit (range 16) 567 | -10/Materials | Entered another Materials area 567 | -9/Materials | Evolved 2 slots: Utility x2 897 | -9/Materials | Discovered new exit (range 16) 897 | -9/Materials | Discovered new exit (range 17) 1007 | -9/Materials | Discovered new exit (range 7) 1011 | -9/Materials | Identified exit to Materials 1012 | -9/Materials | Entered another Materials area 1012 | -8/Materials | Evolved 2 slots: Utility x2 1171 | -8/Materials | Self-destructed Last Messages --------------- 01120_ Fusion Modulator explodes. 01120_ Imp. Ion Engine destroyed. 01120_ Destroyed Imp. Ion Engine. 01120_ Hvy. Assault Rifle destroyed. 01120_ Destroyed Hvy. Assault Rifle. 01126_ Electrolysis Chamber disabled. 01126_ Sml. Laser destroyed. 01126_ Critical hit (Burn: +37). 01133_ K-01 Serf collects debris. 01135_ Wheel destroyed. 01136_ K-01 Serf collects debris. 01141_ G-47 Trooper destroyed. 01142_ Seismic Detector destroyed. 01144_ Assault Rifle destroyed. 01146_ Wheel destroyed. 01150_ Slammed into G-47 Trooper. 01152_ R-06 Scavenger collects Aluminum Leg. 01153_ Slammed into G-47 Trooper. 01154_ Critical hit (Burn: +37). 01157_ Slammed into G-47 Trooper. Map ----- +----------------------------------------------------+ | ???????? ????# #????????????????? | | ????! ? ????# #????????????????? | | ???? ? ????# #????????????????? | | ???? ? #???# #????????????????? | | ???? # #???# #????????????????? | | ????" # #???# #????+???????????? | | ???"" + ##### #??? #???????????? | | ??""" # ## * ### #???????????? | | # # ## ! #???????????? | | # """ # ## [ #???????????? | | # """ !# ## ######???????????? | | # "" # ### ##????????????????? | | # # #?# #?????????????????? | | ;;;;;;;; #?# #?????????????????? | | ; #?# #####?????????????? | | ; ### !!#?????????????? | | ; !!#?????????????? | | !!#?????????????? | | %### !!#?????????????? | | ### ==#?????????????? | | ;## ==#?????????????? | | ##########?????????????? | | ; ;#######???????????????? | | ; ; ; #??????????????? | | ; ;g# #??????????????? | | ; ; @# +??????????????? | | # ; # #??????????????? | | #;;;;;;;###? #??????????????? | | ### ???? #??????????????? | | ??######?????######??????????????? | | | | | | | | | | | | | | | | | | | | | | | | | | | | | | | | | | | | | | | | | +----------------------------------------------------+ Best States ------------- Heat Dissipation 31 Energy Generation 12 Energy Capacity 265 Matter Stores 300 Matter Capacity 300 Sight Range 16 Robot Scan Range 14 Terrain Scan Density 10 Evasion (%) 44 Item Schematics ----------------- None Robot Schematics ------------------ None Fabricated ------------ Nothing Repaired ---------- Nothing Alien Tech Used ----------------- None Achievements -------------- None Challenges ------------ None Game ------ Seed DiametricLaserThermoblaster Manual? 0 Play Time 00:11:23 Cumulative 82.0 hours Start 2025.09.21 @ 11:50:39 End 2025.09.21 @ 12:00:59 Sessions 1 Manual Loads 0 Difficulty Rogue Special Mode None Game No. 174 Rogue 172 Adventurer 0 Explorer 2 Win Type - Total 0 Types 0/0/0/0/0/0/0/0/0/0 Lore% 29 Gallery% 46 Achievement% 41 Wizard Run 0 Options --------- Layout 2 ASCII 0 Keyboard 1 Movement Arrows Keybinds 0 Fullscreen 1 Font 28/SmallcapsGlow Map View 50x49 Zoom Use 0% Tactical HUD 1 Map Filters NONE Filters NONE Steam 1 RUN: 4a9d6b34-4cc8-401a-a598-c245cae57b7b